[Event "15th Tashkent Open Agzamov 2022"]
[Site "Tashkent"]
[Date "2022.05.05"]
[Round "3.8"]
[White "Vakhidov, Jakhongir"]
[Black "Begmuratov, Khumoyun"]
[Result "1-0"]
[ECO "E63"]
[WhiteElo "2552"]
[BlackElo "2384"]
[Annotator "TA"]
[PlyCount "69"]
[EventDate "2022.05.05"]
[EventType "swiss"]
[EventCountry "UZB"]
[SourceTitle "playchess.com"]
[Source "ChessBase"]
[SourceQuality "1"]
[TimeControl "5400+30"]

{[%evp 19,69,20,32,27,28,35,33,22,37,22,24,37,108,104,93,93,93,97,132,113,296,290,259,237,369,360,485,466,463,333,472,504,670,627,662,612,620,453,589,452,579,420,29990,29991,29992,29993,29993,29991,29996,29997,29997,29998]} 1. c4 {[%emt 0:05:12]} Nf6 {[%emt 0:00:14]} 2. Nc3 {[%emt 0:00:12]} g6 {[%emt 0:00:07]} 3. g3 {[%emt 0:00:10]} Bg7 {[%emt 0:00:11]} 4. Bg2 {[%emt 0:00:10]} O-O {[%emt 0:00:17]} 5. d4 {[%emt 0:00:08][%cal Bd2d4,Bd4d5][%mdl 32]} d6 {[%emt 0:00:22]} 6. Nf3 {[%emt 0:00:10]} Nc6 {[%emt 0:00:25]} 7. d5 {[%emt 0:00:23]} Na5 {[%emt 0:04:43]} 8. b3 {[%emt 0:00:12]} c5 {[%emt 0:01:11]} 9. Bb2 {[%emt 0:00:10]} a6 {[%emt 0:02:39]} 10. O-O {[%emt 0:00:11]} Rb8 {[%emt 0:01:48]} 11. a4 {[%emt 0:00:10] Prevents b5. E63: King's Indian: Fianchetto: Panno Variation with 7...a6.} Ne4 {[%emt 0:06:49]} 12. Qc2 {[%emt 0:02:32]} Nxc3 {[%emt 0:03:54]} 13. Bxc3 {[%emt 0:00:08] White is slightly better.} Bf5 {[%emt 0:00:22]} 14. Qb2 {[%emt 0:00:18]} Bxc3 {[%emt 0:00:16]} 15. Qxc3 {[%emt 0:00:08] [#]} Be4 $146 {[%emt 0:00:57]} ({Black should try} 15... Qb6 $14) ({Predecessor:} 15... Qb6 16. Nd2 Qb4 17. Rfc1 Qxc3 18. Rxc3 Bd7 19. f4 b6 20. e4 e5 21. h4 Kg7 {½-½ (32) Anderson,C (2180)-Nordal,S (2198) ICCF email 2021}) 16. Bh3 $16 {[%emt 0:01:01]} Bxf3 {[%emt 0:01:35]} 17. exf3 {[%emt 0:00:11]} Qb6 {[%emt 0:18:36]} 18. Rfb1 {[%emt 0:40:40][%cal Bf1b1,Bb1e1,Be1e3][%mdl 32] White is more active.} Rfe8 {[%emt 0:17:12]} 19. f4 {[%emt 0:03:45]} f6 $2 {[%emt 0:14:52] [#]} (19... Qb4 $16 20. Qe3 f5) 20. Be6+ $18 {[%emt 0:02:43]} Kg7 {[%emt 0:00:46]} 21. h4 {[%emt 0:01:53]} Qc7 {[%emt 0:01:38]} (21... Qb4 $142 22. Qe3 Rf8) 22. g4 {[%emt 0:10:16][%cal Bg3g4,Bg4g5][%mdl 32]} b6 {[%emt 0:02:39]} 23. Re1 {[%emt 0:07:14]} Nb7 {[%emt 0:02:11]} 24. Re3 {[%emt 0:00:03]} Rf8 {[%emt 0:04:33]} (24... Nd8 $142 25. Rae1 Rb7) 25. Rae1 {[%emt 0:00:20]} Rbe8 {[%emt 0:00:13]} 26. g5 {[%emt 0:01:48]} Nd8 {[%emt 0:00:39]} 27. f5 {[%emt 0:01:58]} gxf5 {[%emt 0:02:45]} 28. f4 {[%emt 0:03:38]} Kh8 {[%emt 0:01:33]} 29. Kh2 {[%emt 0:01:45]} h6 {[%emt 0:01:57]} 30. Rg3 {[%emt 0:01:29] Qf3 would kill now.} b5 {[%emt 0:01:27]} (30... Nxe6 $18 31. Rxe6 Qd8) 31. Qf3 {[%emt 0:00:34] White mates.} Qa5 {[%emt 0:03:18] [#]} 32. Qh5 $1 {[%emt 0:00:15][%cal Rh5h6][%mdl 512]} Nf7 {[%emt 0:00:11]} (32... Rf7 33. Bxf7) 33. g6 {[%emt 0:01:47]} Qxe1 {[%emt 0:00:19]} 34. g7+ {[%emt 0:00:12]} Kh7 {[%emt 0:00:06]} 35. Qg6+ {[%emt 0:00:32] Black got outplayed after the opening.  Weighted Error Value: White=0.24 (precise) /Black=0.69} 1-0

[Event "15th Tashkent Open Agzamov 2022"]
[Site "Tashkent"]
[Date "2022.05.05"]
[Round "3.9"]
[White "Vokhidov, Shamsiddin"]
[Black "Manafov, Vugar"]
[Result "1-0"]
[ECO "B04"]
[WhiteElo "2536"]
[BlackElo "2311"]
[Annotator "TA"]
[PlyCount "43"]
[EventDate "2022.05.05"]
[EventType "swiss"]
[EventCountry "UZB"]
[SourceTitle "playchess.com"]
[Source "ChessBase"]
[SourceQuality "1"]
[TimeControl "5400+30"]

{[%evp 10,43,66,46,51,43,72,63,68,73,72,29,68,58,58,63,59,25,29,32,20,25,86,94,121,84,200,200,393,386,400,400,503,498,655,645]} 1. e4 {[%emt 0:00:02][%cal Be2e4,Be4e5][%mdl 32]} Nf6 {[%emt 0:00:16]} 2. e5 {[%emt 0:00:05]} Nd5 {[%emt 0:00:04]} 3. d4 {[%emt 0:00:04]} d6 {[%emt 0:00:04]} 4. Nf3 {[%emt 0:00:03]} Nb6 {[%emt 0:00:27]} 5. a4 {[%emt 0:01:10]} a5 {[%emt 0:00:28]} 6. Nc3 {[%emt 0:00:20]} g6 {[%emt 0:00:43] B04: Alekhine's Defence: 4 Nf3.} 7. h4 {[%emt 0:00:11]} Bg4 {[%emt 0:05:26]} 8. h5 {[%emt 0:00:39]} gxh5 {[%emt 0:00:19] White is slightly better.} 9. Be2 {[%emt 0:00:17] [#] Hoping for Ng5. White is more active.} Bg7 $146 {[%emt 0:01:12]} ({Predecessor:} 9... Nc6 10. Ng5 Bxe2 11. Qxe2 Nxd4 12. Qxh5 Nxc2+ 13. Kd1 Nxa1 14. e6 Qb8 15. Nxf7 c6 16. Nxd6+ Kd8 17. Qe8+ Kc7 18. Ncb5+ {1-0 (18) Baskin,R (2390)-Gumularz,S (2513) Chess.com INT 2020}) 10. Be3 {[%emt 0:16:09][%mdl 1024] White has strong compensation.} (10. Nh4 $5 {[%cal Re2g4]} Qc8 11. exd6 $11) 10... Qc8 {[%emt 0:16:00]} 11. Qd2 {[%emt 0:09:56]} Na6 {[%emt 0:05:18]} 12. Ne4 {[%emt 0:05:51]} Nb4 {[%emt 0:13:20]} 13. Ng3 {[%emt 0:06:27] Against Qf5} (13. c3 {is interesting.} N4d5 14. Ng3 Rg8 15. Nxh5 Qd7 16. Bb5) 13... dxe5 {[%emt 0:03:15]} 14. Nxh5 {[%emt 0:02:00]} Bxh5 {[%emt 0:01:19]} 15. Rxh5 {[%emt 0:00:02]} exd4 {[%emt 0:04:31]} (15... e4 $1 $11 {remains equal.} 16. Ne5 Qe6) 16. Nxd4 $16 {[%emt 0:04:13]} ({Of course not} 16. Bxd4 Bxd4 17. Nxd4 Qd7 $11) 16... Qd7 {[%emt 0:02:38] [#] Strongly threatening ...Bxd4.} 17. O-O-O {[%emt 0:03:22][%cal Ba1d1,Bd1d4,Bd4d5][%mdl 32]} N6d5 {[%emt 0:14:14]} (17... e6 $16) 18. c3 $18 {[%emt 0:04:20]} Nxe3 $2 {[%emt 0:03:59]} (18... O-O-O {was worth a try.}) 19. Qxe3 {[%emt 0:03:58] aiming for Nf5.} Nd5 {[%emt 0:02:35]} 20. Qg5 {[%emt 0:02:32][%csl LRd5,LRg7]} Bxd4 {[%emt 0:03:33]} 21. Rxd4 {[%emt 0:00:10]} c6 {[%emt 0:00:14]} 22. Rxd5 {[%emt 0:00:26] Weighted Error Value: White=0.11 (very precise) /Black=0.42} 1-0

[Event "15th Tashkent Open Agzamov 2022"]
[Site "Tashkent"]
[Date "2022.05.05"]
[Round "3.10"]
[White "Ibadov, Dashgyn"]
[Black "Aditya Mittal"]
[Result "0-1"]
[ECO "B90"]
[WhiteElo "2266"]
[BlackElo "2490"]
[Annotator "TA"]
[PlyCount "104"]
[EventDate "2022.05.05"]
[EventType "swiss"]
[EventCountry "UZB"]
[SourceTitle "playchess.com"]
[Source "ChessBase"]
[SourceQuality "1"]
[TimeControl "5400+30"]

{[%evp 12,104,12,12,30,22,19,0,8,1,14,0,0,0,0,0,0,2,3,0,0,0,0,0,0,0,0,0,10,12,23,19,41,0,0,0,0,0,0,0,2,-21,-15,-29,-12,-31,-33,-20,-32,-19,-18,-37,-20,-41,-35,-46,-40,-37,-34,-40,-35,-37,-35,-44,-25,-40,-44,-51,-43,-31,-59,-170,-162,-235,-218,-224,-213,-251,-247,-242,-235,-245,-244,-333,-318,-496,-496,-975,-951,-981,-971,-2046,-1429,-29990,-1983]} 1. e4 {[%emt 0:01:36]} c5 {[%emt 0:00:11]} 2. Nf3 {[%emt 0:00:10]} d6 {[%emt 0:00:04]} 3. d4 {[%emt 0:00:10]} cxd4 {[%emt 0:00:05]} 4. Nxd4 {[%emt 0:00:10]} Nf6 {[%emt 0:00:06]} 5. Nc3 {[%emt 0:00:03]} a6 {[%emt 0:00:03]} 6. h3 {[%emt 0:00:30]} e5 {[%emt 0:00:05] 6...e5 is better than 6...e6.} 7. Nde2 {[%emt 0:00:38]} h5 {[%emt 0:00:11] Against g4. B90: Sicilian Najdorf: Unusual White 6th moves, 6 Be3 Ng4 and 6 Be3 e5.} 8. Bg5 {[%emt 0:00:19]} Be6 {[%emt 0:00:53]} 9. Bxf6 {[%emt 0:00:44]} Qxf6 {[%emt 0:00:03] The position is equal.} 10. Nd5 {[%emt 0:00:08]} Qd8 {[%emt 0:00:06]} 11. Nec3 {[%emt 0:00:26]} g6 {[%emt 0:05:13]} 12. Bc4 {[%emt 0:00:23]} Bh6 {[%emt 0:01:13]} 13. O-O {[%emt 0:02:03]} Nc6 {[%emt 0:02:45]} 14. Qd3 {[%emt 0:02:42]} Rc8 {[%emt 0:02:16]} 15. Rad1 {[%emt 0:07:57][%cal Od5b6]} O-O {[%emt 0:11:19][%cal Oc6b4]} 16. Bb3 {[%emt 0:02:23]} Nd4 {[%emt 0:06:41]} 17. f4 {[%emt 0:06:53]} Nxb3 {[%emt 0:03:57]} 18. axb3 {[%emt 0:00:06]} exf4 {[%emt 0:01:13]} 19. Nxf4 {[%emt 0:01:47]} Bxf4 {[%emt 0:03:46]} 20. Rxf4 {[%emt 0:00:25]} Qg5 {[%emt 0:00:16] [#]} 21. Rf2 $146 {[%emt 0:10:15]} ({Predecessor:} 21. Rf3 Rfd8 22. Rdf1 Rd7 23. Kh1 b5 24. Rf6 Qe5 25. Nd5 Rb7 26. R6f2 h4 27. c3 {0-1 (36) Filgueiras,N (2311)-Kozionov,K (2470) Chess.com INT 2020}) 21... Rfe8 {[%emt 0:09:58]} 22. Rfd2 {[%emt 0:02:58]} Rc6 {[%emt 0:03:17]} 23. Ne2 {[%emt 0:03:40]} d5 {[%emt 0:06:49]} 24. exd5 {[%emt 0:15:03]} Bxd5 {[%emt 0:04:13][%csl Gd5][%cal Rg5g2]} 25. Nc3 {[%emt 0:02:07]} Be6 {[%emt 0:00:12]} 26. Qd4 {[%emt 0:12:22]} Bf5 {[%emt 0:09:16] Against Ne4} 27. Kh1 {[%emt 0:03:18]} Qg3 {[%emt 0:07:25]} 28. Nd5 {[%emt 0:11:24][%cal Od5e7]} Re1+ {[%emt 0:11:26]} 29. Rxe1 {[%emt 0:00:14]} Qxe1+ {[%emt 0:00:02]} 30. Kh2 {[%emt 0:00:08]} Re6 {[%emt 0:00:45][%cal Bc6e6,Be6e5,Be5e2][%mdl 32]} 31. c4 {[%emt 0:05:31]} h4 {[%emt 0:02:57] ( -> ...Qg3+)} 32. Rf2 {[%emt 0:03:21]} Qe5+ {[%emt 0:00:27]} 33. Qxe5 {[%emt 0:00:22]} Rxe5 $15 {[%emt 0:00:02][%mdl 4096] Endgame KRB-KRN} 34. Rf4 {[%emt 0:02:58]} Re2 {[%emt 0:01:50]} 35. Rxh4 {[%emt 0:00:16]} Kg7 {[%emt 0:08:55]} 36. Rd4 $1 Rxb2 {[%emt 0:00:00]} 37. b4 {[%emt 0:00:36]} Be6 {[%emt 0:00:00]} 38. Kg3 {[%emt 0:02:47]} b5 {[%emt 0:00:00]} 39. cxb5 {[%emt 0:00:38]} axb5 {[%emt 0:00:00] Hoping for ...Bxd5.} 40. Nc7 {[%emt 0:01:30]} Bc4 {[%emt 0:00:00]} 41. Kh2 {[%emt 0:01:23] [#]} ({White should try} 41. Ne8+ $15 Kg8 42. Nd6) 41... Bf1 $1 $19 {[%emt 0:00:00]} ({Inferior is} 41... Rxb4 42. Nxb5 Rxb5 43. Rxc4 $11) 42. Rg4 {[%emt 0:00:18]} (42. Kg1 {was worth a try.} Bxg2 43. h4) 42... f5 {[%emt 0:00:00]} 43. Rg3 {[%emt 0:00:07]} Rxb4 {[%emt 0:00:00]} 44. Nd5 {[%emt 0:01:04] [#]} Re4 {[%emt 0:00:31]} 45. Ra3 {[%emt 0:00:33]} Bc4 {[%emt 0:00:27]} 46. Ra7+ {[%emt 0:00:06]} Kh6 {[%emt 0:00:38]} 47. Nf6 {[%emt 0:00:57]} Re6 {[%emt 0:00:18]} 48. Ng8+ {[%emt 0:00:27]} (48. Rf7 $142) 48... Kg5 {[%emt 0:00:03]} 49. Kg3 {[%emt 0:00:25]} (49. Ne7 $142 b4 50. Rc7) 49... f4+ {[%emt 0:01:56][%cal Bf5f4,Bf4f3][%mdl 32]} 50. Kh2 {[%emt 0:00:32]} Re2 {[%emt 0:03:37]} 51. Ne7 {[%emt 0:00:32]} f3 {[%emt 0:00:00]} 52. h4+ {[%emt 0:00:26]} Kf6 {[%emt 0:00:00] Weighted Error Value: White=0.48/Black=0.01 (flawless)} (52... Kg4 $142 53. Rc7 Rxg2+ 54. Kh1 Kg3 55. Nf5+ Kh3 56. Rxc4 bxc4 57. Nd4 f2 58. Nf3 f1=Q+ 59. Ng1+ Rxg1#) 0-1

[Event "15th Tashkent Open Agzamov 2022"]
[Site "Tashkent"]
[Date "2022.05.06"]
[Round "4.1"]
[White "Sindarov, Javokhir"]
[Black "Suleymenov, Alisher"]
[Result "1-0"]
[ECO "B33"]
[WhiteElo "2609"]
[BlackElo "2445"]
[Annotator "TA"]
[PlyCount "111"]
[EventDate "2022.05.05"]
[EventType "swiss"]
[EventCountry "UZB"]
[SourceTitle "playchess.com"]
[Source "ChessBase"]
[SourceQuality "1"]
[TimeControl "5400+30"]

{[%evp 25,111,25,23,18,27,22,39,41,45,16,20,18,26,20,25,29,51,42,79,39,64,49,113,109,132,68,173,46,56,63,70,5,35,0,0,-58,-11,-114,-114,-100,-101,-107,-22,-30,0,0,0,0,0,0,0,0,0,0,0,0,2,3,187,187,187,187,301,268,362,324,497,497,477,477,469,408,477,400,11459,12452,5708,2589,29974,29975,29979,29980,29980,29981,29981,29981,29980,29975]} 1. e4 {[%emt 0:00:01]} c5 {[%emt 0:00:08]} 2. Nf3 {[%emt 0:00:04]} Nc6 {[%emt 0:00:04]} 3. d4 {[%emt 0:00:43]} cxd4 {[%emt 0:00:07]} 4. Nxd4 {[%emt 0:00:03]} Nf6 {[%emt 0:00:05]} 5. Nc3 {[%emt 0:00:17]} e5 {[%emt 0:00:06]} 6. Ndb5 {[%emt 0:00:43]} d6 {[%emt 0:00:07]} 7. Bg5 {[%emt 0:07:39]} a6 {[%emt 0:00:08]} 8. Na3 {[%emt 0:00:02]} b5 {[%emt 0:00:05]} 9. Nd5 {[%emt 0:00:10]} Be7 {[%emt 0:00:06]} 10. Bxf6 {[%emt 0:00:05]} Bxf6 {[%emt 0:00:02]} 11. c3 {[%emt 0:00:33]} O-O {[%emt 0:00:08]} 12. Nc2 {[%emt 0:12:05]} Rb8 {[%emt 0:00:06]} 13. h4 {[%emt 0:05:31][%cal Bh2h4,Bh4h5][%mdl 32]} g6 {[%emt 0:00:38]} 14. g3 {[%emt 0:03:43] B33: Sicilian: Pelikan and Sveshnikov Variations.} Bg7 {[%emt 0:02:28]} 15. h5 {[%emt 0:02:29]} Bb7 {[%emt 0:01:59]} 16. Nce3 {[%emt 0:07:48] Pair of Knights! White is slightly better.} Ne7 {[%emt 0:03:56]} 17. Qd2 {[%emt 0:06:25]} Nxd5 {[%emt 0:05:07]} 18. Nxd5 {[%emt 0:00:46]} Rc8 {[%emt 0:13:59]} 19. Bg2 {[%emt 0:20:42] [#]} Rc5 $146 {[%emt 0:01:42]} ({Predecessor:} 19... Bxd5 20. Qxd5 Rc5 21. Qd3 Qc7 22. Rd1 Rd8 23. hxg6 hxg6 24. Bf3 a5 25. Kf1 b4 26. cxb4 axb4 27. Kg2 Bf6 28. Qe3 Qc6 29. Rd2 Rc4 30. Qh6 {½-½ (30) Kuhne,D (2174)-Priepke,W (2215) GER email 2015}) 20. Ne3 {[%emt 0:00:14]} (20. hxg6 {is more complex.} fxg6 21. b4 Rc4 22. a4) 20... f5 {[%emt 0:04:43]} 21. hxg6 {[%emt 0:02:44]} hxg6 {[%emt 0:00:09]} 22. O-O-O {[%emt 0:07:15]} f4 {[%emt 0:06:42]} 23. Nc2 {[%emt 0:00:55]} Rf6 {[%emt 0:16:26]} ({Black should play} 23... f3 $14 24. Bf1 Bxe4) 24. gxf4 $16 {[%emt 0:02:55]} Qf8 {[%emt 0:01:44]} 25. Rh4 {[%emt 0:02:44]} (25. Kb1 $16) 25... a5 {[%emt 0:19:15]} (25... Qf7 $14) 26. Kb1 {[%emt 0:00:53]} ({White should try} 26. f5 $1 $18) 26... Rxf4 $14 {[%emt 0:00:50]} 27. Rxf4 {[%emt 0:01:01]} exf4 {[%emt 0:00:04]} 28. Nd4 {[%emt 0:03:09]} (28. Qxd6 $6 Qxd6 29. Rxd6 Rg5 $15) (28. f3 $14) 28... Re5 {[%emt 0:10:17]} 29. f3 {[%emt 0:00:36]} d5 {[%emt 0:02:39]} 30. Bh3 {[%emt 0:04:12]} (30. exd5 $11 Bxd5 31. Nxb5) 30... Qf6 {[%emt 0:02:18]} (30... dxe4 $15 31. Ne6 (31. Be6+ Kh8 $17) 31... Qe7 32. Qxf4 g5) 31. Be6+ {[%emt 0:04:31]} Rxe6 $17 {[%emt 0:02:07]} 32. Nxe6 {[%emt 0:00:01]} Qxe6 {[%emt 0:00:04]} 33. Qxf4 {[%emt 0:00:58]} Be5 {[%emt 0:04:56] Inhibits Qb8+.} (33... dxe4 $2 34. Rd8+ Kh7 35. Qh2+ Bh6 36. Qc7+ Bg7 37. Qxb7 $18 (37. Rd7 exf3 38. Qxb7 Qf5+ 39. Kc1 Kh6 $16)) (33... Bc6 $17) 34. Qg5 {[%emt 0:00:49]} Qf6 {[%emt 0:01:42]} (34... dxe4 $2 35. Qd8+ Kg7 36. Rd7+ Qf7 37. Rxf7+ $18) (34... Qd6 $5 {[%cal Rb5b4]}) 35. Qxf6 {[%emt 0:00:10]} Bxf6 {[%emt 0:00:03]} 36. exd5 {[%emt 0:00:03][%cal Oa2a4]} Kf7 {[%emt 0:00:51]} 37. Kc2 {[%emt 0:01:12]} Ke7 {[%emt 0:01:07]} 38. a4 {[%emt 0:00:09]} bxa4 {[%emt 0:00:32]} 39. Re1+ $1 {[%emt 0:00:03]} Kf7 {[%emt 0:00:24]} 40. c4 {[%emt 0:01:16][%cal Bc3c4,Bc4c5][%mdl 32]} Be7 {[%emt 0:01:30]} 41. Ra1 {[%emt 0:00:44]} Bb4 $2 {Black cannot hold the game after this.} (41... Bc8 $11 {and Black has nothing to worry.}) 42. Kd3 $1 $18 {[%emt 0:05:07][%mdl 1024] Strongly threatening Kd4. White has strong compensation.} ({Worse is} 42. Rxa4 Ke7 $11) 42... Ke7 {[%emt 0:02:06] [#]} 43. Rg1 $1 {[%emt 0:00:30]} ({Weaker is} 43. Rxa4 Bc8 $11) 43... Bc8 {[%emt 0:00:00]} (43... Kf7 {might work better.} 44. Rh1 Bf8) 44. Kd4 {[%emt 0:00:00]} Bf5 {[%emt 0:01:00]} 45. c5 {[%emt 0:00:00] Threatens to win with Kc4.} a3 {[%emt 0:00:00]} (45... Bd2 $142 46. Ra1 Kd7 47. Rxa4 g5) 46. bxa3 {[%emt 0:01:30]} Bxa3 {[%emt 0:00:00]} 47. Kc4 {[%emt 0:00:00]} Bb2 {[%emt 0:00:49]} 48. Kb5 {[%emt 0:00:00]} Bc3 {[%emt 0:00:32]} (48... Bd4 $2 49. Rd1 Bf6 50. Kxa5 $18) 49. d6+ {[%emt 0:00:00][%cal Bd5d6,Bd6d7][%mdl 32]} Kd7 {[%emt 0:00:23]} (49... Kd8 $142 50. c6 Bb4) 50. Rd1 {[%emt 0:00:00] c6+ would kill now.} Kd8 {[%emt 0:00:41]} 51. c6 {[%emt 0:00:00] Intending d7 and mate.} a4 {[%emt 0:00:23]} 52. d7 {[%emt 0:00:00] White mates.} Bf6 {[%emt 0:00:34] [#]} 53. Kb6 $1 {[%emt 0:00:00]} Be5 {[%emt 0:00:28]} 54. Re1 {[%emt 0:00:00]} Bc7+ {[%emt 0:00:34]} 55. Kb7 {[%emt 0:00:00][%csl Gd7][%cal Re1e8]} Bxd7 {[%emt 0:00:07]} 56. Rd1 {[%emt 0:00:00][%mdl 64] Pin.  Weighted Error Value: White=0.18 (very precise) /Black=0.47} 1-0

[Event "15th Tashkent Open Agzamov 2022"]
[Site "Tashkent"]
[Date "2022.05.06"]
[Round "4.2"]
[White "Bernadskiy, Vitaliy"]
[Black "Vokhidov, Shamsiddin"]
[Result "1/2-1/2"]
[ECO "B67"]
[WhiteElo "2636"]
[BlackElo "2536"]
[Annotator "TA"]
[PlyCount "65"]
[EventDate "2022.05.05"]
[EventType "swiss"]
[EventCountry "UZB"]
[SourceTitle "playchess.com"]
[Source "ChessBase"]
[SourceQuality "1"]
[TimeControl "5400+30"]

{[%evp 20,65,43,23,24,0,0,0,0,0,0,0,0,0,0,0,0,-39,-34,-49,-41,-45,-11,-20,0,-15,-11,-15,-15,-18,-22,-13,0,0,0,-8,0,0,0,0,0,0,0,0,0,0,0,200]} 1. e4 {[%emt 0:01:41]} c5 {[%emt 0:00:33]} 2. Nf3 {[%emt 0:00:07]} Nc6 {[%emt 0:00:38]} 3. d4 {[%emt 0:00:06]} cxd4 {[%emt 0:00:05]} 4. Nxd4 {[%emt 0:00:05]} Nf6 {[%emt 0:00:03]} 5. Nc3 {[%emt 0:00:07]} d6 {[%emt 0:00:16]} 6. Bg5 {[%emt 0:00:26]} e6 {[%emt 0:00:10]} 7. Qd2 {[%emt 0:00:42]} a6 {[%emt 0:00:07]} 8. O-O-O {[%emt 0:00:26]} Bd7 {[%emt 0:00:04]} 9. f3 {[%emt 0:00:38]} Nxd4 {[%emt 0:02:09]} 10. Qxd4 {[%emt 0:02:02]} Be7 {[%emt 0:00:28]} 11. h4 {[%emt 0:05:41]} Qc7 {[%emt 0:00:30] B67: Sicilian: Richter-Rauzer: 7...a6 8 0-0-0 Bd7, lines without 9 f4 Be7.} 12. h5 {[%emt 0:02:19] [#] And now h6 would win.} h6 {[%emt 0:02:24] [#]} 13. Bh4 $146 {[%emt 0:06:00]} ({Predecessor:} 13. Be3 b5 14. g4 Rb8 15. Kb1 b4 16. Ne2 e5 17. Qd2 Be6 18. g5 hxg5 19. Bxg5 Rxh5 20. Rxh5 Nxh5 21. Bxe7 Kxe7 {0-1 (58) Coman,M (2133)-Schitco,I (2469) Arad 2021}) 13... b5 {[%emt 0:09:11][%cal Bb7b5,Bb5b4][%mdl 32]} 14. Kb1 {[%emt 0:04:55]} Rb8 {[%emt 0:14:36][%cal Ba8b8,Bb8b5,Bb5c5][%mdl 32]} 15. g4 {[%emt 0:10:29]} b4 {[%emt 0:07:10]} 16. Ne2 {[%emt 0:02:18]} ({Not} 16. Bxf6 $2 Bxf6 17. Qxd6 Qxd6 18. Rxd6 bxc3 $19) 16... a5 {[%emt 0:01:14]} 17. Ng3 {[%emt 0:00:05]} a4 {[%emt 0:07:16]} 18. Bc4 {[%emt 0:11:29]} Bb5 {[%emt 0:10:22]} 19. Bxb5+ {[%emt 0:05:53]} Rxb5 {[%emt 0:00:02]} 20. f4 {[%emt 0:01:22]} Qc5 {[%emt 0:04:26]} (20... b3 {keeps more tension.} 21. cxb3 axb3 22. a3 Qc2+) 21. Qxc5 {[%emt 0:08:23] The position is equal.} Rxc5 {[%emt 0:01:12]} 22. Rd4 {[%emt 0:00:13]} Rb5 {[%emt 0:03:31]} 23. Rhd1 {[%emt 0:02:36]} Nxg4 {[%emt 0:08:03]} 24. Bxe7 {[%emt 0:00:31][%mdl 64] [#] Remove Defender} Kxe7 {[%emt 0:00:03]} 25. Rxd6 {[%emt 0:00:40] Hoping for Rd7+.} Rc8 {[%emt 0:09:17] aiming for ...Ne3.} 26. Ra6 {[%emt 0:03:46]} Rbc5 {[%emt 0:02:34]} 27. Rxa4 {[%emt 0:01:19]} Ne3 {[%emt 0:07:18]} 28. Ra7+ {[%emt 0:04:55]} Ke8 {[%emt 0:00:16]} 29. Rdd7 {[%emt 0:00:10] Threatens to win with Re7+.} Rxc2 {[%emt 0:00:04][%csl Gc8][%cal Rc2c1]} 30. Re7+ {[%emt 0:00:04]} Kf8 {[%emt 0:00:03][%csl Gc8][%cal Rc2c1]} 31. Rxf7+ {[%emt 0:00:06]} Ke8 {[%emt 0:00:11][%csl Gc8][%cal Rc2c1]} 32. Rae7+ {[%emt 0:01:01]} Kd8 {[%emt 0:00:05][%csl Gc8][%cal Rc2c1]} 33. Rd7+ $2 {[%emt 0:26:25] Weighted Error Value: White=0.07 (flawless) /Black=0.03 (flawless)} (33. a3 $11) 1/2-1/2